[Event "NJSK 2026 Jeugd C"]
[Site "Helmond, Netherlands"]
[Date "2026.04.30"]
[Round "8.11"]
[White "Huang, Vincent"]
[Black "Nair, Pranav Prasobh"]
[Result "1/2-1/2"]
[TimeControl "90min/40moves + 30sec/move"]
[WhiteTitle "-"]
[BlackTitle "-"]
[WhiteFideId "40104184"]
[BlackFideId "40109135"]
[WhiteElo "1855"]
[BlackElo "1747"]

1. d4 {[%clk 01:30:59]} {[%emt 00:00:01]} Nf6 {[%clk 01:30:53]} {[%emt
00:00:07]} 2. c4 {[%clk 01:31:23]} {[%emt 00:00:07]} e6 {[%clk 01:31:19]}
{[%emt 00:00:05]} 3. Nc3 {[%clk 01:31:49]} {[%emt 00:00:05]} Bb4 {[%clk
01:31:42]} {[%emt 00:00:04]} 4. Bd2 {[%clk 01:32:15]} {[%emt 00:00:04]} c5
{[%clk 01:32:00]} {[%emt 00:00:12]} 5. e3 {[%clk 01:30:20]} {[%emt 00:02:24]}
cxd4 {[%clk 01:31:48]} {[%emt 00:00:42]} 6. exd4 {[%clk 01:30:44]} {[%emt
00:00:07]} d5 {[%clk 01:31:26]} {[%emt 00:00:52]} 7. a3 {[%clk 01:29:43]}
{[%emt 00:01:31]} Bxc3 {[%clk 01:30:00]} {[%emt 00:01:56]} 8. Bxc3 {[%clk
01:30:02]} {[%emt 00:00:10]} Ne4 {[%clk 01:28:50]} {[%emt 00:01:40]} 9. Qc2
{[%clk 01:27:14]} {[%emt 00:03:19]} Nxc3 {[%clk 01:27:58]} {[%emt 00:01:22]} 10.
Qxc3 {[%clk 01:27:37]} {[%emt 00:00:07]} Nc6 {[%clk 01:27:25]} {[%emt
00:01:03]} 11. Nf3 {[%clk 01:26:56]} {[%emt 00:01:10]} O-O {[%clk 01:25:46]}
{[%emt 00:02:10]} 12. Bd3 {[%clk 01:25:55]} {[%emt 00:01:31]} dxc4 {[%clk
01:23:38]} {[%emt 00:02:36]} 13. Bxc4 {[%clk 01:25:30]} {[%emt 00:00:56]} Bd7
{[%clk 01:23:33]} {[%emt 00:00:34]} 14. O-O {[%clk 01:22:01]} {[%emt 00:03:59]}
Rc8 {[%clk 01:22:30]} {[%emt 00:01:33]} 15. Qd3 {[%clk 01:18:18]} {[%emt
00:04:11]} a6 {[%clk 01:13:25]} {[%emt 00:09:37]} 16. b4 {[%clk 01:15:46]}
{[%emt 00:03:01]} Ne7 {[%clk 01:08:22]} {[%emt 00:05:33]} 17. Rfe1 {[%clk
01:06:14]} {[%emt 00:10:02]} Bc6 {[%clk 00:53:28]} {[%emt 00:15:23]} 18. Ne5
{[%clk 00:45:13]} {[%emt 00:21:32]} Bd5 {[%clk 00:53:02]} {[%emt 00:00:57]} 19.
Rac1 {[%clk 00:42:15]} {[%emt 00:03:28]} b5 {[%clk 00:39:27]} {[%emt 00:14:05]}
20. Bxd5 {[%clk 00:37:07]} {[%emt 00:05:37]} Qxd5 {[%clk 00:39:42]} {[%emt
00:00:14]} 21. h3 {[%clk 00:27:21]} {[%emt 00:10:17]} Nc6 {[%clk 00:35:00]}
{[%emt 00:05:11]} 22. Nf3 {[%clk 00:24:56]} {[%emt 00:02:55]} h6 {[%clk
00:29:15]} {[%emt 00:06:15]} 23. Rc5 {[%clk 00:24:38]} {[%emt 00:00:47]} Qd6
{[%clk 00:29:19]} {[%emt 00:00:26]} 24. Rec1 {[%clk 00:23:16]} {[%emt
00:01:53]} Ne7 {[%clk 00:17:23]} {[%emt 00:12:26]} 25. Qe4 {[%clk 00:20:18]}
{[%emt 00:03:27]} Rcd8 {[%clk 00:08:21]} {[%emt 00:09:33]} 26. Kf1 {[%clk
00:11:52]} {[%emt 00:08:56]} Qb6 {[%clk 00:03:34]} {[%emt 00:05:16]} 27. Qe5
{[%clk 00:07:53]} {[%emt 00:04:30]} Nd5 {[%clk 00:02:42]} {[%emt 00:01:22]} 28.
g4 {[%clk 00:05:44]} {[%emt 00:02:40]} a5 {[%clk 00:01:58]} {[%emt 00:01:14]}
29. g5 {[%clk 00:05:10]} {[%emt 00:01:03]} f6 {[%clk 00:01:43]} {[%emt
00:00:44]} 30. Qe2 {[%clk 00:03:47]} {[%emt 00:01:54]} fxg5 {[%clk 00:00:37]}
{[%emt 00:01:37]} 31. Rc6 {[%clk 00:03:32]} {[%emt 00:00:45]} Qb8 {[%clk
00:00:36]} {[%emt 00:00:28]} 32. Qxe6+ {[%clk 00:03:41]} {[%emt 00:00:23]} Kh8
{[%clk 00:00:44]} {[%emt 00:00:21]} 33. Ne5 {[%clk 00:03:45]} {[%emt 00:00:27]}
Nf4 {[%clk 00:00:39]} {[%emt 00:00:35]} 34. Qe7 {[%clk 00:02:09]} {[%emt
00:02:06]} Rxd4 {[%clk 00:00:38]} {[%emt 00:00:32]} 35. Rc7 {[%clk 00:01:39]}
{[%emt 00:01:00]} Rg8 {[%clk 00:00:39]} {[%emt 00:00:29]} 36. Nf7+ {[%clk
00:00:48]} {[%emt 00:01:21]} Kh7 {[%clk 00:01:03]} {[%emt 00:00:05]} 37. Nxh6
{[%clk 00:00:44]} {[%emt 00:00:34]} Kxh6 {[%clk 00:00:39]} {[%emt 00:00:55]} 38.
R7c6+ {[%clk 00:00:48]} {[%emt 00:00:26]} Ng6 {[%clk 00:00:36]} {[%emt
00:00:32]} 39. Qe6 {[%clk 00:00:36]} {[%emt 00:00:42]} Qe8 {[%clk 00:00:56]}
{[%emt 00:00:10]} 40. Re1 {[%clk 00:00:46]} {[%emt 00:00:20]} Qxe6 {[%clk
00:00:41]} {[%emt 00:00:46]} 41. Rexe6 {[%clk 00:01:11]} {[%emt 00:00:04]} axb4
{[%clk 00:01:06]} {[%emt 00:00:06]} 42. Rxg6+ {[%clk 00:01:32]} {[%emt
00:00:09]} Kh7 {[%clk 00:01:29]} {[%emt 00:00:06]} 43. Rxg5 {[%clk 00:01:30]}
{[%emt 00:00:33]} g6 {[%clk 00:01:39]} {[%emt 00:00:19]} 44. axb4 {[%clk
00:01:40]} {[%emt 00:00:21]} Rxb4 {[%clk 00:02:03]} {[%emt 00:00:05]} 45. Rb6
{[%clk 00:01:56]} {[%emt 00:00:13]} Rh4 {[%clk 00:00:46]} {[%emt 00:01:47]} 46.
Kg2 {[%clk 00:01:58]} {[%emt 00:00:28]} b4 {[%clk 00:00:46]} {[%emt 00:00:30]}
47. Rgb5 {[%clk 00:01:59]} {[%emt 00:00:29]} Rf8 {[%clk 00:00:45]} {[%emt
00:00:31]} 48. Rxb4 {[%clk 00:02:06]} {[%emt 00:00:23]} Rxb4 {[%clk 00:01:04]}
{[%emt 00:00:11]} 49. Rxb4 {[%clk 00:02:32]} {[%emt 00:00:04]} g5 {[%clk
00:01:10]} {[%emt 00:00:25]} 50. Rb6 {[%clk 00:02:17]} {[%emt 00:00:45]} Rf4
{[%clk 00:01:29]} {[%emt 00:00:11]} 51. Kg3 {[%clk 00:02:36]} {[%emt 00:00:10]}
Kg7 {[%clk 00:01:30]} {[%emt 00:00:28]} 52. Rb5 {[%clk 00:02:15]} {[%emt
00:00:52]} Kh6 {[%clk 00:01:47]} {[%emt 00:00:13]} 53. Rb6+ {[%clk 00:01:53]}
{[%emt 00:00:52]} Kg7 {[%clk 00:01:55]} {[%emt 00:00:22]} 54. f3 {[%clk
00:01:45]} {[%emt 00:00:39]} Kh7 {[%clk 00:02:01]} {[%emt 00:00:24]} 55. Re6
{[%clk 00:01:23]} {[%emt 00:00:51]} Kg7 {[%clk 00:02:07]} {[%emt 00:00:25]} 56.
Re4 {[%clk 00:01:21]} {[%emt 00:00:30]} Rf6 {[%clk 00:01:17]} {[%emt 00:01:21]}
57. h4 {[%clk 00:00:49]} {[%emt 00:01:03]} gxh4+ {[%clk 00:01:26]} {[%emt
00:00:20]} 58. Rxh4 {[%clk 00:01:14]} {[%emt 00:00:04]} Rb6 {[%clk 00:01:22]}
{[%emt 00:00:33]} 59. Rg4+ {[%clk 00:01:31]} {[%emt 00:00:15]} Kf7 {[%clk
00:01:32]} {[%emt 00:00:20]} 60. Rf4+ {[%clk 00:01:41]} {[%emt 00:00:21]} Kg7
{[%clk 00:01:56]} {[%emt 00:00:06]} 61. Re4 {[%clk 00:02:04]} {[%emt 00:00:06]}
Kf7 {[%clk 00:02:18]} {[%emt 00:00:09]} 62. f4 {[%clk 00:02:18]} {[%emt
00:00:16]} Rb5 {[%clk 00:02:21]} {[%emt 00:00:26]} 63. Kg4 {[%clk 00:02:30]}
{[%emt 00:00:18]} Rc5 {[%clk 00:02:39]} {[%emt 00:00:12]} 64. Ra4 {[%clk
00:02:29]} {[%emt 00:00:30]} Rd5 {[%clk 00:02:51]} {[%emt 00:00:18]} 65. Ra7+
{[%clk 00:01:54]} {[%emt 00:01:05]} Kf8 {[%clk 00:03:07]} {[%emt 00:00:15]} 66.
f5 {[%clk 00:02:11]} {[%emt 00:00:13]} Rd6 {[%clk 00:03:18]} {[%emt 00:00:18]}
67. Kg5 {[%clk 00:02:21]} {[%emt 00:00:21]} Rc6 {[%clk 00:03:42]} {[%emt
00:00:06]} 68. Rb7 {[%clk 00:01:08]} {[%emt 00:01:44]} Ra6 {[%clk 00:03:50]}
{[%emt 00:00:22]} 69. Rh7 {[%clk 00:01:06]} {[%emt 00:00:31]} Rb6 {[%clk
00:03:46]} {[%emt 00:00:34]} 70. Rh6 {[%clk 00:00:40]} {[%emt 00:00:56]} Rxh6
{[%clk 00:03:40]} 71. Kxh6 {[%clk 00:01:06]} {[%emt 00:00:40]} Kf7 {[%clk
00:04:01]} {[%emt 00:00:09]} 72. Kg5 {[%clk 00:01:31]} {[%emt 00:00:05]} Kg7
{[%clk 00:04:27]} {[%emt 00:00:04]} 73. f6+ {[%clk 00:01:51]} {[%emt 00:00:11]}
Kf7 {[%clk 00:04:52]} {[%emt 00:00:04]} 74. Kf5 {[%clk 00:02:14]} {[%emt
00:00:08]} Kf8 {[%clk 00:05:17]} {[%emt 00:00:05]} 75. Kg6 {[%clk 00:02:31]}
{[%emt 00:00:13]} Kg8 {[%clk 00:05:42]} {[%emt 00:00:05]} 1/2-1/2

[Event "NJSK 2026 Jeugd C"]
[Site "Helmond, Netherlands"]
[Date "2026.04.30"]
[Round "8.12"]
[White "Huang, Ziyang"]
[Black "Shaikh, Rushaan"]
[Result "0-1"]
[TimeControl "90min/40moves + 30sec/move"]
[WhiteTitle "-"]
[BlackTitle "-"]
[WhiteFideId "40105288"]
[BlackFideId "40113604"]
[WhiteElo "1721"]
[BlackElo "1842"]

1. e4 {[%clk 01:30:59]} g6 {[%clk 01:30:55]} {[%emt 00:00:05]} 2. d4 {[%clk
01:31:27]} {[%emt 00:00:02]} Bg7 {[%clk 01:31:20]} {[%emt 00:00:04]} 3. Nc3
{[%clk 01:31:51]} {[%emt 00:00:06]} d6 {[%clk 01:31:43]} {[%emt 00:00:08]} 4.
f4 {[%clk 01:32:17]} {[%emt 00:00:04]} Nc6 {[%clk 01:32:01]} {[%emt 00:00:15]}
5. Nf3 {[%clk 01:32:32]} {[%emt 00:00:12]} Bg4 {[%clk 01:32:25]} {[%emt
00:00:06]} 6. Be3 {[%clk 01:32:44]} {[%emt 00:00:19]} Bxf3 {[%clk 01:32:40]}
{[%emt 00:00:15]} 7. gxf3 {[%clk 01:33:01]} {[%emt 00:00:13]} d5 {[%clk
01:33:01]} {[%emt 00:00:08]} 8. e5 {[%clk 01:32:43]} {[%emt 00:00:47]} Nh6
{[%clk 01:33:03]} {[%emt 00:00:29]} 9. a3 {[%clk 01:31:43]} {[%emt 00:01:30]}
Nf5 {[%clk 01:32:45]} {[%emt 00:00:48]} 10. Bf2 {[%clk 01:31:22]} {[%emt
00:00:51]} Bh6 {[%clk 01:32:12]} {[%emt 00:01:04]} 11. Qd2 {[%clk 01:31:12]}
{[%emt 00:00:40]} e6 {[%clk 01:30:37]} {[%emt 00:02:04]} 12. h4 {[%clk
01:26:07]} {[%emt 00:05:35]} a6 {[%clk 01:26:13]} {[%emt 00:04:55]} 13. O-O-O
{[%clk 01:25:53]} {[%emt 00:00:44]} Qe7 {[%clk 01:20:48]} {[%emt 00:05:53]} 14.
Bh3 {[%clk 01:24:55]} {[%emt 00:01:28]} O-O-O {[%clk 01:05:55]} {[%emt
00:15:23]} 15. Bxf5 {[%clk 01:24:02]} {[%emt 00:01:23]} gxf5 {[%clk 01:06:21]}
{[%emt 00:00:04]} 16. h5 {[%clk 01:23:37]} {[%emt 00:00:56]} Rdg8 {[%clk
01:02:56]} {[%emt 00:03:54]} 17. Bh4 {[%clk 01:15:39]} {[%emt 00:08:27]} Qf8
{[%clk 01:02:32]} {[%emt 00:00:55]} 18. Bg5 {[%clk 01:14:35]} {[%emt 00:01:34]}
b6 {[%clk 00:53:32]} {[%emt 00:09:31]} 19. Rhg1 {[%clk 01:09:31]} {[%emt
00:05:32]} Bxg5 {[%clk 00:48:11]} {[%emt 00:05:52]} 20. Rxg5 {[%clk 01:04:22]}
{[%emt 00:05:40]} h6 {[%clk 00:46:25]} {[%emt 00:02:13]} 21. Rg2 {[%clk
01:00:35]} {[%emt 00:04:17]} Rxg2 {[%clk 00:44:39]} {[%emt 00:02:19]} 22. Qxg2
{[%clk 01:00:22]} {[%emt 00:00:42]} Rg8 {[%clk 00:45:03]} {[%emt 00:00:06]} 23.
Qf1 {[%clk 00:46:39]} {[%emt 00:14:13]} Kb7 {[%clk 00:43:39]} {[%emt 00:01:53]}
24. Ne2 {[%clk 00:46:12]} {[%emt 00:00:58]} Qg7 {[%clk 00:42:25]} {[%emt
00:01:43]} 25. c3 {[%clk 00:43:21]} {[%emt 00:03:22]} Na5 {[%clk 00:40:40]}
{[%emt 00:02:15]} 26. Qg1 {[%clk 00:36:03]} {[%emt 00:07:48]} Qg2 {[%clk
00:38:57]} {[%emt 00:02:13]} 27. Qxg2 {[%clk 00:29:02]} {[%emt 00:07:31]} Rxg2
{[%clk 00:39:23]} {[%emt 00:00:03]} 28. Re1 {[%clk 00:27:32]} {[%emt 00:02:01]}
Nc4 {[%clk 00:38:11]} {[%emt 00:01:41]} 29. b3 {[%clk 00:20:41]} {[%emt
00:07:22]} Nxa3 {[%clk 00:37:14]} {[%emt 00:01:27]} 30. Kd2 {[%clk 00:20:28]}
{[%emt 00:00:44]} c5 {[%clk 00:25:05]} {[%emt 00:12:37]} 31. Rg1 {[%clk
00:20:13]} {[%emt 00:00:45]} Rxg1 {[%clk 00:24:55]} {[%emt 00:00:41]} 32. Nxg1
{[%clk 00:20:41]} {[%emt 00:00:02]} Nb5 {[%clk 00:24:41]} {[%emt 00:00:44]} 33.
Nh3 {[%clk 00:20:41]} {[%emt 00:00:29]} cxd4 {[%clk 00:22:40]} {[%emt
00:02:31]} 34. Ng5 {[%clk 00:19:55]} {[%emt 00:01:17]} dxc3+ {[%clk 00:22:18]}
{[%emt 00:00:53]} 35. Kd3 {[%clk 00:19:54]} {[%emt 00:00:30]} d4 {[%clk
00:22:15]} {[%emt 00:00:33]} 36. Nxf7 {[%clk 00:20:14]} {[%emt 00:00:11]} Na3
{[%clk 00:22:29]} {[%emt 00:00:15]} 37. Nxh6 {[%clk 00:20:06]} {[%emt
00:00:39]} c2 {[%clk 00:22:50]} {[%emt 00:00:09]} 38. Kd2 {[%clk 00:20:32]}
{[%emt 00:00:04]} d3 {[%clk 00:23:13]} {[%emt 00:00:07]} 39. Nxf5 {[%clk
00:20:36]} {[%emt 00:00:25]} Nb1+ {[%clk 00:22:25]} {[%emt 00:01:14]} 40. Kc1
{[%clk 00:20:19]} {[%emt 00:00:52]} exf5 {[%clk 00:22:37]} {[%emt 00:00:16]} 41.
h6 {[%clk 00:20:37]} {[%emt 00:00:13]} Nc3 {[%clk 00:23:01]} {[%emt 00:00:05]}
0-1

[Event "NJSK 2026 Jeugd C"]
[Site "Helmond, Netherlands"]
[Date "2026.04.30"]
[Round "8.13"]
[White "Fu, Ziqing"]
[Black "Okita, Ryoga"]
[Result "0-1"]
[TimeControl "90min/40moves + 30sec/move"]
[WhiteTitle "-"]
[BlackTitle "-"]
[WhiteFideId "40109623"]
[BlackFideId "1090666"]
[WhiteElo "1810"]
[BlackElo "1812"]

1. e4 {[%clk 01:30:45]} {[%emt 00:00:14]} c5 {[%clk 01:30:49]} {[%emt
00:00:11]} 2. Nf3 {[%clk 01:30:43]} {[%emt 00:00:30]} d6 {[%clk 01:30:53]}
{[%emt 00:00:27]} 3. d4 {[%clk 01:29:58]} {[%emt 00:01:16]} cxd4 {[%clk
01:30:58]} {[%emt 00:00:25]} 4. Nxd4 {[%clk 01:29:30]} {[%emt 00:00:58]} Nf6
{[%clk 01:30:55]} {[%emt 00:00:33]} 5. Nc3 {[%emt 00:02:04]} a6 {[%clk
01:30:41]} 6. Be3 {[%clk 01:27:57]} {[%emt 00:01:12]} e5 {[%clk 01:30:47]}
{[%emt 00:00:25]} 7. Nb3 {[%clk 01:27:46]} {[%emt 00:00:40]} Be6 {[%clk
01:30:46]} {[%emt 00:00:31]} 8. Nd5 {[%clk 01:27:30]} {[%emt 00:00:46]} Nbd7
{[%clk 01:29:08]} {[%emt 00:02:09]} 9. Nxf6+ {[%clk 01:21:04]} {[%emt
00:06:55]} Nxf6 {[%clk 01:28:56]} {[%emt 00:00:43]} 10. Bd3 {[%clk 01:21:11]}
{[%emt 00:00:23]} Ng4 {[%clk 01:27:43]} {[%emt 00:01:43]} 11. Qd2 {[%clk
01:19:09]} {[%emt 00:02:31]} Be7 {[%clk 01:26:39]} {[%emt 00:01:33]} 12. O-O
{[%clk 01:17:47]} {[%emt 00:01:51]} O-O {[%clk 01:25:02]} {[%emt 00:02:08]} 13.
Qe2 {[%clk 01:16:56]} {[%emt 00:01:21]} Rc8 {[%clk 01:22:34]} {[%emt 00:02:58]}
14. Bd2 {[%clk 01:16:30]} {[%emt 00:00:56]} Bg5 {[%clk 01:19:29]} {[%emt
00:03:35]} 15. Rad1 {[%clk 01:15:51]} {[%emt 00:01:09]} Bxd2 {[%clk 01:16:52]}
{[%emt 00:03:07]} 16. Nxd2 {[%clk 01:14:32]} {[%emt 00:01:48]} b5 {[%clk
01:16:22]} {[%emt 00:01:01]} 17. c4 {[%clk 01:12:02]} {[%emt 00:03:01]} b4
{[%clk 01:14:04]} {[%emt 00:02:48]} 18. Rc1 {[%clk 01:09:52]} {[%emt 00:02:38]}
a5 {[%clk 01:09:48]} {[%emt 00:04:47]} 19. Rfd1 {[%clk 01:09:47]} {[%emt
00:00:36]} Qb6 {[%clk 01:09:34]} {[%emt 00:00:43]} 20. Nf3 {[%clk 01:08:16]}
{[%emt 00:02:01]} h6 {[%clk 01:08:37]} {[%emt 00:01:27]} 21. Nd2 {[%clk
01:04:45]} {[%emt 00:04:01]} Rfd8 {[%clk 01:08:02]} {[%emt 00:01:05]} 22. Nf1
{[%clk 01:04:52]} {[%emt 00:00:23]} Rc6 {[%clk 01:04:33]} {[%emt 00:03:58]} 23.
h3 {[%clk 01:02:43]} {[%emt 00:02:40]} Nf6 {[%clk 01:04:56]} {[%emt 00:00:07]}
24. Ne3 {[%clk 01:02:06]} {[%emt 00:01:07]} Rdc8 {[%clk 01:03:46]} {[%emt
00:01:40]} 25. Qd2 {[%clk 00:56:14]} {[%emt 00:06:22]} Nh5 {[%clk 00:58:36]}
{[%emt 00:05:38]} 26. Be2 {[%clk 00:52:55]} {[%emt 00:03:51]} Nf4 {[%clk
00:56:03]} {[%emt 00:03:04]} 27. b3 {[%clk 00:50:10]} {[%emt 00:03:15]} Qd8
{[%clk 00:53:47]} {[%emt 00:02:45]} 28. Bg4 {[%clk 00:49:30]} {[%emt 00:01:10]}
Qg5 {[%clk 00:48:45]} {[%emt 00:05:31]} 29. Kh2 {[%clk 00:46:31]} {[%emt
00:03:29]} Kf8 {[%clk 00:46:13]} {[%emt 00:03:02]} 30. Bf3 {[%clk 00:40:52]}
{[%emt 00:06:10]} Qh4 {[%clk 00:36:33]} {[%emt 00:10:10]} 31. Bg4 {[%clk
00:40:07]} {[%emt 00:01:15]} Qg5 {[%clk 00:34:35]} {[%emt 00:02:29]} 32. Bf3
{[%clk 00:40:10]} {[%emt 00:00:26]} Qf6 {[%clk 00:33:43]} {[%emt 00:01:22]} 33.
Bg4 {[%clk 00:39:49]} {[%emt 00:00:51]} h5 {[%clk 00:31:26]} {[%emt 00:02:47]}
34. Nd5 {[%clk 00:36:28]} {[%emt 00:03:51]} Qh6 {[%clk 00:23:15]} {[%emt
00:08:41]} 35. Bf3 {[%clk 00:34:04]} {[%emt 00:02:54]} Bxd5 {[%clk 00:21:22]}
{[%emt 00:02:24]} 36. cxd5 {[%clk 00:33:49]} {[%emt 00:00:45]} Rc5 {[%clk
00:21:20]} {[%emt 00:00:31]} 37. Qe3 {[%clk 00:32:31]} {[%emt 00:01:47]} h4
{[%clk 00:18:05]} {[%emt 00:03:46]} 38. Bg4 {[%clk 00:31:53]} {[%emt 00:01:07]}
R8c7 {[%clk 00:17:43]} {[%emt 00:00:52]} 39. Qd2 {[%clk 00:31:50]} {[%emt
00:00:33]} Ng6 {[%clk 00:15:54]} {[%emt 00:02:20]} 40. Qxh6 {[%clk 00:30:18]}
{[%emt 00:02:01]} gxh6 {[%clk 00:16:13]} {[%emt 00:00:12]} 41. Rxc5 {[%clk
00:30:37]} {[%emt 00:00:11]} Rxc5 {[%clk 00:16:41]} 42. Rd2 {[%clk 00:30:56]}
{[%emt 00:00:10]} Rc3 {[%clk 00:15:40]} {[%emt 00:01:32]} 43. Bf3 {[%clk
00:29:06]} {[%emt 00:02:19]} Nf4 {[%clk 00:15:58]} {[%emt 00:00:13]} 44. Rb2
{[%clk 00:29:01]} {[%emt 00:00:35]} Nd3 {[%clk 00:15:55]} {[%emt 00:00:32]} 45.
Rd2 {[%clk 00:29:21]} {[%emt 00:00:11]} Ke7 {[%clk 00:15:27]} {[%emt 00:00:58]}
46. Bd1 {[%clk 00:27:26]} {[%emt 00:02:24]} Kf6 {[%clk 00:13:25]} {[%emt
00:02:33]} 47. g3 {[%clk 00:27:32]} {[%emt 00:00:24]} Kg5 {[%clk 00:11:42]}
{[%emt 00:02:13]} 48. f3 {[%clk 00:26:04]} {[%emt 00:01:58]} hxg3+ {[%clk
00:11:08]} {[%emt 00:01:04]} 49. Kxg3 {[%clk 00:26:23]} {[%emt 00:00:11]} Nf4
{[%clk 00:10:45]} {[%emt 00:00:54]} 50. Bc2 {[%clk 00:25:54]} {[%emt 00:00:58]}
Kf6 {[%clk 00:10:46]} {[%emt 00:00:30]} 51. Rf2 {[%clk 00:25:50]} {[%emt
00:00:32]} h5 {[%clk 00:10:13]} {[%emt 00:01:04]} 52. h4 {[%clk 00:25:42]}
{[%emt 00:00:39]} Ke7 {[%clk 00:10:20]} {[%emt 00:00:22]} 53. Rd2 {[%clk
00:26:04]} {[%emt 00:00:07]} Kd7 {[%clk 00:10:41]} {[%emt 00:00:10]} 54. Rf2
{[%clk 00:26:22]} {[%emt 00:00:12]} Kc7 {[%clk 00:10:49]} {[%emt 00:00:21]} 55.
Rd2 {[%clk 00:26:44]} {[%emt 00:00:08]} Kb6 {[%clk 00:11:12]} {[%emt 00:00:09]}
56. Rf2 {[%clk 00:27:07]} {[%emt 00:00:06]} Kc5 {[%clk 00:11:31]} {[%emt
00:00:12]} 57. Rd2 {[%clk 00:27:30]} {[%emt 00:00:06]} f6 {[%clk 00:11:44]}
{[%emt 00:00:17]} 58. Kf2 {[%clk 00:27:32]} {[%emt 00:00:28]} Kb5 {[%clk
00:09:54]} {[%emt 00:02:20]} 59. Kg3 {[%clk 00:27:56]} {[%emt 00:00:06]} Ng6
{[%clk 00:08:50]} {[%emt 00:01:34]} 60. Rf2 {[%clk 00:28:15]} {[%emt 00:00:11]}
Kc5 {[%clk 00:08:57]} {[%emt 00:00:24]} 61. Rd2 {[%clk 00:28:30]} {[%emt
00:00:14]} Ne7 {[%clk 00:09:24]} {[%emt 00:00:03]} 62. Kf2 {[%clk 00:28:45]}
{[%emt 00:00:15]} Nc8 {[%clk 00:09:14]} {[%emt 00:00:40]} 63. Bd3 {[%clk
00:28:32]} {[%emt 00:00:43]} Na7 {[%clk 00:09:08]} {[%emt 00:00:36]} 64. Bc2
{[%clk 00:28:30]} {[%emt 00:00:32]} Nb5 {[%clk 00:09:18]} {[%emt 00:00:20]} 65.
Kg3 {[%clk 00:28:42]} {[%emt 00:00:18]} Nd4 {[%clk 00:09:10]} {[%emt 00:00:38]}
66. Bd1 {[%clk 00:27:08]} {[%emt 00:02:04]} Rc1 {[%clk 00:08:05]} {[%emt
00:01:35]} 67. Kf2 {[%clk 00:27:27]} {[%emt 00:00:10]} Nb5 {[%clk 00:08:09]}
{[%emt 00:00:27]} 68. Bc2 {[%clk 00:26:08]} {[%emt 00:01:50]} Nc3 {[%clk
00:08:19]} {[%emt 00:00:19]} 69. Bd3 {[%clk 00:26:18]} {[%emt 00:00:20]} Ra1
{[%clk 00:08:38]} {[%emt 00:00:11]} 70. Kg3 {[%clk 00:26:20]} {[%emt 00:00:27]}
Rxa2 {[%clk 00:08:49]} {[%emt 00:00:20]} 71. Rxa2 {[%clk 00:26:20]} {[%emt
00:00:30]} Nxa2 {[%clk 00:09:16]} {[%emt 00:00:03]} 72. Bc2 {[%clk 00:26:38]}
{[%emt 00:00:12]} Kd4 {[%clk 00:09:36]} {[%emt 00:00:10]} 73. f4 {[%clk
00:26:45]} {[%emt 00:00:23]} Nc1 {[%clk 00:06:56]} {[%emt 00:03:10]} 74. Bd1
{[%clk 00:27:07]} {[%emt 00:00:08]} Kc3 {[%clk 00:07:12]} {[%emt 00:00:14]} 75.
Bxh5 {[%clk 00:27:21]} {[%emt 00:00:16]} Nd3 {[%clk 00:05:44]} {[%emt
00:01:57]} 76. f5 {[%clk 00:27:16]} {[%emt 00:00:36]} Nf4 {[%clk 00:05:49]}
{[%emt 00:00:25]} 77. Bd1 {[%clk 00:27:27]} {[%emt 00:00:19]} Kd2 {[%clk
00:06:18]} {[%emt 00:00:02]} 78. Bf3 {[%clk 00:27:44]} {[%emt 00:00:12]} Kc2
{[%clk 00:06:40]} {[%emt 00:00:07]} 79. h5 {[%clk 00:28:04]} {[%emt 00:00:11]}
Nxh5+ {[%clk 00:07:02]} {[%emt 00:00:07]} 80. Bxh5 {[%clk 00:28:27]} {[%emt
00:00:08]} Kxb3 {[%clk 00:07:27]} {[%emt 00:00:06]} 81. Bd1+ {[%clk 00:28:48]}
{[%emt 00:00:08]} Kc3 {[%clk 00:07:49]} {[%emt 00:00:08]} 82. Kh4 {[%clk
00:29:05]} {[%emt 00:00:13]} b3 {[%clk 00:08:09]} {[%emt 00:00:10]} 83. Bxb3
{[%clk 00:29:18]} {[%emt 00:00:16]} Kxb3 {[%clk 00:08:32]} {[%emt 00:00:08]} 84.
Kh5 {[%clk 00:29:43]} {[%emt 00:00:05]} a4 {[%clk 00:08:48]} {[%emt 00:00:14]}
85. Kg6 {[%clk 00:30:06]} {[%emt 00:00:08]} a3 {[%clk 00:09:15]} {[%emt
00:00:03]} 86. Kxf6 {[%clk 00:30:16]} {[%emt 00:00:19]} a2 {[%clk 00:09:39]}
{[%emt 00:00:07]} 87. Ke6 {[%clk 00:30:38]} {[%emt 00:00:08]} a1=Q {[%clk
00:09:56]} {[%emt 00:00:14]} 88. Kxd6 {[%clk 00:31:02]} {[%emt 00:00:06]} Qd4
{[%clk 00:09:05]} {[%emt 00:01:21]} 89. f6 {[%clk 00:30:49]} {[%emt 00:00:42]}
Qxe4 {[%clk 00:09:23]} {[%emt 00:00:13]} 90. f7 {[%clk 00:31:08]} {[%emt
00:00:11]} Qf3 {[%clk 00:09:23]} {[%emt 00:00:30]} 91. Ke7 {[%clk 00:31:25]}
{[%emt 00:00:13]} Qxd5 {[%clk 00:09:41]} {[%emt 00:00:11]} 92. f8=Q {[%clk
00:31:31]} {[%emt 00:00:25]} Qc5+ {[%clk 00:10:00]} {[%emt 00:00:10]} 93. Kf7
{[%clk 00:31:46]} {[%emt 00:00:16]} Qxf8+ {[%clk 00:10:19]} {[%emt 00:00:11]}
94. Kxf8 {[%clk 00:31:49]} {[%emt 00:00:26]} e4 {[%clk 00:10:46]} {[%emt
00:00:04]} 95. Kf7 {[%clk 00:31:55]} {[%emt 00:00:24]} e3 {[%clk 00:11:09]}
{[%emt 00:00:07]} 96. Ke6 {[%clk 00:32:08]} {[%emt 00:00:17]} e2 {[%clk
00:11:29]} {[%emt 00:00:09]} 97. Kd5 {[%clk 00:32:21]} {[%emt 00:00:17]} e1=Q
{[%clk 00:11:49]} {[%emt 00:00:10]} 98. Kd4 {[%clk 00:32:43]} {[%emt 00:00:08]}
Qe6 {[%clk 00:11:51]} {[%emt 00:00:27]} 99. Kd3 {[%clk 00:32:59]} {[%emt
00:00:09]} Qg4 {[%clk 00:12:03]} {[%emt 00:00:23]} 100. Kd2 {[%clk 00:32:59]}
{[%emt 00:00:29]} Qf3 {[%clk 00:12:19]} {[%emt 00:00:15]} 101. Ke1 {[%clk
00:32:57]} {[%emt 00:00:30]} Qg2 {[%clk 00:12:33]} {[%emt 00:00:18]} 102. Kd1
{[%clk 00:33:06]} {[%emt 00:00:21]} Qf2 {[%clk 00:12:56]} {[%emt 00:00:08]} 103.
Kc1 {[%clk 00:33:28]} {[%emt 00:00:07]} Qc2# {[%clk 00:13:15]} {[%emt
00:00:11]} 0-1